bitfinex/quotes_ETHUSD_20240928
["timestamp","ask_amount","ask_price","bid_price","bid_amount"]
[1727497569286,0.86151401,2704.0,2703.7,3.69862]
[1727497570382,1.65820675,2703.9,2703.7,3.69862]
[1727497570570,1.70649127,2703.9,2703.7,3.69862]
[1727497572570,0.04828452,2703.9,2703.7,3.69862]
[1727497572776,0.7552,2704.5,2704.3,3.69776]
[1727497572980,2.43255103,2704.6,2704.3,3.69776]
[1727497572981,3.18775103,2704.8,2704.4,3.69767]
[1727497573158,2.50935839,2704.6,2704.4,3.69767]
[1727497573518,2.50935839,2704.6,2704.3,3.69776]
[1727497573519,1.65820675,2704.6,2704.3,3.69776]
[1727497573999,1.65820675,2704.4,2704.3,3.69776]
[1727497574369,0.04343797,2704.4,2704.3,7.39549]
[1727497574568,3.59137616,2704.6,2704.3,3.69773]
[1727497574894,0.04348644,2704.4,2704.3,3.69773]
[1727497575493,0.77434428,2704.7,2704.5,3.69754]
[1727497575705,4.36572044,2704.9,2704.7,3.69726]
[1727497576904,4.49503614,2705.1,2704.9,3.69699]
[1727497577072,4.49503614,2705.1,2705.0,3.69685]
[1727497577271,0.1293157,2705.1,2705.0,3.69685]
[1727497577967,0.17350622,2705.1,2705.0,3.69685]
[1727497581899,0.17350622,2705.1,2705.0,5.2311277]
[1727497582107,0.17350622,2705.1,2705.0,5.30505438]
[1727497582315,0.17350622,2705.1,2705.0,5.2311277]
[1727497582806,0.17350622,2705.1,2705.0,5.30505561]
[1727497585383,0.1293157,2705.1,2705.0,5.30505561]
[1727497593121,0.1293157,2705.1,2705.0,5.2311277]
[1727497593636,0.1293157,2705.1,2705.0,4.4436277]
[1727497593936,0.1293157,2705.1,2705.0,3.69685]
[1727497595452,0.8950157,2705.1,2705.0,3.69685]
[1727497596043,0.8950157,2705.1,2704.8,3.6971]
[1727497596334,3.59137616,2705.0,2704.8,3.6971]
[1727497596541,0.44863919,2704.9,2704.8,3.6971]
[1727497597042,0.7657,2704.8,2704.7,3.69725]
[1727497597210,0.7657,2704.8,2704.6,3.69737]
[1727497597399,4.35707616,2704.8,2704.6,3.69737]
[1727497597916,4.35707616,2704.8,2704.7,3.69726]
[1727497598118,4.79778378,2704.8,2704.6,3.69732]
[1727497598416,4.79778378,2704.8,2704.6,7.39462]
[1727497598624,4.79778378,2704.8,2704.7,3.69726]
[1727497604524,1.20640762,2704.8,2704.7,3.69726]
[1727497604721,4.35707616,2705.0,2704.7,3.69726]
[1727497606552,4.35707616,2705.0,2704.8,3.69703]
[1727497607114,4.35707616,2705.0,2704.7,3.69726]
[1727497608260,4.35707616,2705.0,2704.8,3.6971]
[1727497608469,0.53107362,2704.9,2704.8,3.6971]
[1727497608959,0.53107362,2704.9,2704.7,3.69726]
[1727497609258,0.53107362,2704.9,2704.7,7.39442]
[1727497609428,0.53107362,2704.9,2704.7,3.69716]
[1727497610047,0.53107362,2704.9,2704.7,7.39434]
[1727497610254,0.53107362,2704.9,2704.7,7.39432]
[1727497610552,4.35707616,2705.0,2704.7,3.69716]
[1727497610864,4.35707616,2705.0,2704.9,3.69699]
[1727497612845,0.90365998,2705.1,2705.0,3.69685]
[1727497613157,0.1293157,2705.1,2705.0,3.69685]
[1727497616160,0.90365998,2705.1,2705.0,3.69685]
[1727497616367,3.20979868,2705.1,2705.0,3.69685]
[1727497617135,2.4354544,2705.1,2705.0,3.69685]
[1727497617375,3.59697083,2705.1,2705.0,3.69685]
[1727497619569,2.4354544,2705.1,2705.0,3.69685]
[1727497620277,3.59766256,2705.1,2705.0,3.69685]
[1727497620782,2.4354544,2705.1,2705.0,3.69685]
[1727497621141,3.99036707,2705.1,2705.0,3.69685]
[1727497622077,2.4354544,2705.1,2705.0,3.69685]
[1727497622377,3.99036707,2705.1,2705.0,3.69685]
[1727497622741,2.4354544,2705.1,2705.0,3.69685]
[1727497623088,3.99036707,2705.1,2705.0,3.69685]
[1727497624137,2.4354544,2705.1,2705.0,3.69685]
[1727497624354,3.99036707,2705.1,2705.0,3.69685]
[1727497625377,2.4354544,2705.1,2705.0,3.69685]
[1727497625757,3.99036707,2705.1,2705.0,3.69685]
[1727497626091,2.4354544,2705.1,2705.0,3.69685]
[1727497626243,0.7905,2705.0,2704.6,3.69738]
[1727497626443,2.432059,2704.7,2704.6,3.69738]
[1727497628581,7.69977611,2704.7,2704.1,3.698]
[1727497628890,3.22273068,2704.2,2704.1,3.698]
[1727497629543,3.61033431,2704.2,2704.1,3.698]
[1727497629746,3.61033431,2704.2,2703.9,3.69826]
[1727497629952,1.65702344,2704.0,2703.9,3.69826]
[1727497630751,2.43213774,2704.0,2703.9,3.69826]
[1727497630951,2.43213774,2704.0,2703.7,3.69855]
[1727497630952,2.43213774,2704.0,2703.8,3.69847]
[1727497631152,1.65702344,2703.9,2703.8,3.69847]
[1727497631616,2.43213774,2703.9,2703.8,3.69847]
[1727497631888,2.43213774,2703.9,2703.5,3.6988]
[1727497631889,3.22243774,2703.9,2703.5,3.6988]
[1727497632100,2.43197078,2703.6,2703.5,3.6988]
[1727497632454,2.43197078,2703.6,2703.3,7.39817]
[1727497632653,1.16281087,2703.7,2703.3,7.39817]
[1727497632654,1.65702344,2703.4,2703.3,3.69908]
[1727497632900,2.43197078,2703.4,2703.1,3.69936]
[1727497633201,0.82474978,2703.5,2703.2,3.69931]
[1727497633364,1.65702344,2703.4,2703.3,3.69918]
[1727497633759,0.04292397,2703.4,2703.3,3.69918]
[1727497634166,3.59379716,2703.6,2703.3,3.69918]
[1727497634379,0.04234535,2703.4,2703.3,3.69918]
[1727497634579,3.59379716,2703.6,2703.4,3.69892]
[1727497635687,3.59379716,2703.6,2703.5,3.6989]
[1727497637290,3.6345469,2703.6,2703.5,3.6989]
[1727497641891,0.04074974,2703.6,2703.5,3.6989]
[1727497642189,4.41854694,2703.8,2703.5,3.6989]
[1727497642395,5.10472796,2703.8,2703.5,3.6989]
[1727497642762,0.04084897,2703.7,2703.5,3.6989]
[1727497642963,5.10472796,2703.8,2703.5,3.6989]
[1727497643360,0.04084897,2703.7,2703.5,3.6989]
[1727497643560,4.32997824,2703.8,2703.5,3.6989]
[1727497644076,0.04084897,2703.7,2703.5,3.6989]
[1727497644263,4.32997824,2703.8,2703.5,3.6989]
[1727497644465,0.04074974,2703.6,2703.5,3.6989]
[1727497644690,4.32997824,2703.8,2703.5,3.6989]
[1727497644898,0.04074974,2703.6,2703.5,3.6989]
[1727497645101,3.64379722,2703.8,2703.5,3.6989]
[1727497645299,0.04074974,2703.6,2703.5,3.6989]
[1727497645585,11.73409716,2704.2,2703.6,0.774]
[1727497645911,0.05000006,2704.1,2703.8,3.69848]
[1727497646492,0.82314277,2704.1,2703.8,3.69848]
[1727497648203,0.82314277,2704.1,2703.8,3.69839]
[1727497648408,0.04095636,2704.0,2703.9,3.69835]
[1727497648912,4.41693993,2704.2,2703.8,3.69839]
[1727497649091,3.63471294,2704.0,2703.6,4.47272]
[1727497649266,4.45559722,2704.0,2703.7,3.69862]
[1727497649471,0.04081657,2703.9,2703.7,3.69862]
[1727497650594,0.04081657,2703.9,2703.8,3.69849]
[1727497650998,0.05000006,2704.1,2703.8,3.69849]
[1727497651196,0.04071289,2704.0,2703.8,3.69849]
[1727497652004,0.04071289,2704.0,2703.6,4.47265]
[1727497652211,3.63451005,2704.0,2703.6,3.69865]
[1727497652381,4.16145533,2704.0,2703.6,7.39733]
[1727497652584,4.16145533,2704.0,2703.6,3.69865]
[1727497656220,1.65834277,2703.9,2703.6,3.69865]
[1727497656720,1.69908553,2703.9,2703.6,3.69865]
[1727497658384,0.7578,2703.8,2703.6,3.69865]
[1727497658586,0.7578,2703.8,2703.4,4.51282]
[1727497658587,0.7578,2703.8,2703.4,8.21178]
[1727497658816,0.04054431,2703.7,2703.4,8.21178]
[1727497659106,0.7578,2703.8,2703.4,8.21178]
[1727497659297,0.04049298,2703.6,2703.4,8.21178]
[1727497659495,0.7578,2703.8,2703.5,3.69889]
[1727497661720,1.70834283,2703.9,2703.5,3.69889]
[1727497663207,0.04066749,2703.8,2703.5,3.69889]
[1727497667089,0.8138102,2703.8,2703.5,3.69889]
[1727497668304,0.77314271,2703.7,2703.5,3.69889]
[1727497668558,0.81374756,2703.7,2703.5,3.69889]
[1727497670310,0.77314271,2703.6,2703.5,3.69889]
[1727497670504,0.81364832,2703.6,2703.5,3.69889]
[1727497672246,1.20021967,2703.6,2703.5,3.69889]
[1727497673333,1.58679103,2703.6,2703.5,3.6989]
[1727497673815,3.28972367,2703.6,2703.2,3.69919]
[1727497674014,4.00333414,2703.3,2703.2,3.69919]
[1727497674210,4.43915618,2703.3,2703.0,3.69953]
[1727497674435,1.65834277,2703.1,2703.0,3.69953]
[1727497674822,3.25230756,2703.1,2703.0,3.69953]
[1727497675362,3.25230756,2703.1,2702.9,3.69972]
[1727497675532,1.16549779,2703.0,2702.9,7.39944]
[1727497675876,1.20536388,2703.0,2702.9,7.39944]
[1727497678632,0.8165987,2703.0,2702.9,8.973734]
[1727497678825,0.03986609,2703.0,2702.9,8.973734]
[1727497681662,0.77673261,2703.3,2702.9,8.973734]
[1727497681663,0.77673261,2703.3,2703.2,4.45781]
[1727497681864,0.77673261,2703.4,2703.3,3.69918]
[1727497682168,1.16549779,2703.5,2703.4,3.69904]
[1727497682559,1.20572448,2703.5,2703.4,3.69904]
[1727497697335,1.20539963,2703.5,2703.4,3.69904]
[1727497698835,0.04022669,2703.5,2703.4,3.69904]
[1727497699133,1.20544086,2703.5,2703.4,3.69904]
[1727497699311,1.5942261,2703.5,2703.4,3.69904]
[1727497700116,0.04022669,2703.5,2703.4,3.69904]
[1727497700318,1.5942261,2703.5,2703.4,3.69904]
[1727497700722,0.04022669,2703.5,2703.4,3.69904]
[1727497701103,1.2054849,2703.5,2703.4,3.69904]
[1727497703798,1.5942261,2703.5,2703.4,3.69904]
[1727497705148,1.5942261,2703.5,2703.3,3.69918]
[1727497705307,1.55399941,2703.4,2703.2,3.6993]
[1727497705512,1.165435,2703.3,2703.2,3.6993]
[1727497705826,0.84849187,2703.3,2703.2,3.6993]
[1727497706746,0.84849187,2703.3,2703.2,3.69931]
[1727497708540,2.01395791,2703.3,2703.2,3.69931]
[1727497709082,2.01395775,2703.3,2703.2,3.69931]
[1727497709257,0.84849187,2703.3,2703.2,3.69931]
[1727497710581,4.72117659,2703.3,2702.9,3.6997]
[1727497710738,1.16559548,2703.0,2702.9,3.6997]
[1727497710943,0.03988208,2703.0,2702.9,3.6997]
[1727497711578,1.20547756,2703.0,2702.9,3.6997]
[1727497712540,0.03988208,2703.0,2702.9,3.6997]
[1727497713784,0.81683017,2703.0,2702.9,3.6997]
[1727497713943,0.03988208,2703.0,2702.9,3.6997]
[1727497714981,1.2053627,2703.0,2702.9,3.6997]
[1727497715586,0.03988208,2703.0,2702.9,3.6997]
[1727497716916,1.59400939,2703.0,2702.9,3.6997]
[1727497717118,1.20518059,2703.0,2702.9,3.6997]
[1727497717275,1.20516142,2703.0,2702.9,3.6997]
[1727497717615,0.03988208,2703.0,2702.9,3.6997]
[1727497718321,1.59400939,2703.0,2702.9,3.6997]
[1727497718617,1.59400939,2703.0,2702.8,3.69979]
[1727497718912,1.16511867,2702.9,2702.8,3.69979]
[1727497719281,1.20468583,2702.9,2702.8,3.69979]
[1727497719902,0.03956716,2702.9,2702.8,3.69979]
[1727497720099,1.20468583,2702.9,2702.8,3.69979]
[1727497720887,0.03956716,2702.9,2702.8,3.69979]
[1727497721113,1.20468583,2702.9,2702.8,3.69979]
[1727497721472,0.03956716,2702.9,2702.8,3.69979]
[1727497722315,1.20468583,2702.9,2702.8,3.69979]
[1727497722521,0.03956716,2702.9,2702.8,3.69979]
[1727497722879,1.20468583,2702.9,2702.8,3.69979]
[1727497723091,0.03956716,2702.9,2702.8,3.69979]
[1727497724227,1.20468583,2702.9,2702.8,3.69979]
[1727497724562,0.03956716,2702.9,2702.8,3.69979]
[1727497725265,0.81601606,2702.9,2702.8,3.69979]
[1727497725927,0.81598901,2702.9,2702.8,3.69979]
[1727497726130,0.81599868,2702.9,2702.8,3.69979]
[1727497726326,0.81599582,2702.9,2702.8,3.69979]
[1727497726657,0.81595993,2702.9,2702.8,3.69979]
[1727497726865,0.03956716,2702.9,2702.8,3.69979]
[1727497727063,0.81596263,2702.9,2702.8,3.69979]
[1727497727361,0.81597524,2702.9,2702.8,3.69979]
[1727497727962,0.81592365,2702.9,2702.8,3.69979]
[1727497728335,0.81588733,2702.9,2702.8,3.69979]
[1727497728541,0.03956716,2702.9,2702.8,3.69979]
[1727497728973,0.81588644,2702.9,2702.8,3.69979]
[1727497729779,0.81586542,2702.9,2702.8,3.69979]
[1727497730576,0.03956716,2702.9,2702.8,3.69979]
[1727497731481,0.81585277,2702.9,2702.8,3.69979]
[1727497732484,0.03956716,2702.9,2702.8,3.69979]
[1727497732688,0.81584174,2702.9,2702.8,3.69979]
[1727497732985,0.81582115,2702.9,2702.8,3.69979]
[1727497734755,0.81582115,2702.9,2702.8,4.52589]
[1727497735079,0.03956716,2702.9,2702.8,5.348478]
[1727497736650,0.03956716,2702.9,2702.8,4.52589]
[1727497740790,0.81582115,2702.9,2702.8,4.52589]
[1727497740990,0.03956716,2702.9,2702.8,4.52589]
[1727497741193,0.81582115,2702.9,2702.8,4.52589]
[1727497741394,0.81582115,2702.9,2702.8,3.69979]
[1727497741553,0.81613441,2702.9,2702.8,3.69979]
[1727497741887,0.03956716,2702.9,2702.8,3.69979]
[1727497742097,1.20468583,2702.9,2702.8,3.69979]
[1727497742389,0.03956716,2702.9,2702.8,3.69979]
[1727497742605,1.20468583,2702.9,2702.8,3.69979]
[1727497742811,0.03956716,2702.9,2702.8,3.69979]
[1727497742970,0.81618909,2702.9,2702.8,3.69979]
[1727497743171,0.03956716,2702.9,2702.8,3.69979]
[1727497743371,1.20468583,2702.9,2702.8,3.69979]
[1727497743607,0.03956716,2702.9,2702.8,3.69979]
[1727497744509,1.20468583,2702.9,2702.8,3.69979]
[1727497744683,0.03956716,2702.9,2702.8,3.69979]
[1727497744887,1.20468583,2702.9,2702.8,3.69979]
[1727497750978,1.20558377,2702.9,2702.8,3.69979]
[1727497751310,1.20557904,2702.9,2702.8,3.69979]
[1727497751497,1.20573184,2702.9,2702.8,3.69979]
[1727497751815,1.20573261,2702.9,2702.8,3.69979]
[1727497752011,1.20469371,2702.9,2702.8,3.69979]
[1727497752177,0.03852826,2702.9,2702.8,3.69979]
[1727497752378,1.20478144,2702.9,2702.8,3.69979]
[1727497752714,0.03852826,2702.9,2702.8,3.69979]
[1727497753075,1.59265557,2702.9,2702.8,3.69979]
[1727497753881,0.03852826,2702.9,2702.8,3.69979]
[1727497754115,1.59265557,2702.9,2702.8,3.69979]
[1727497754880,0.03852826,2702.9,2702.8,3.69979]
[1727497755283,1.59265557,2702.9,2702.8,3.69979]
[1727497757484,0.03852826,2702.9,2702.8,3.69979]
[1727497757911,1.59450399,2702.9,2702.8,3.69979]
[1727497758110,1.59447146,2702.9,2702.8,3.69979]
[1727497759018,1.20545218,2702.9,2702.8,5.279678]
[1727497765296,0.03852826,2702.9,2702.8,5.279678]
[1727497765809,1.20545218,2702.9,2702.8,5.279678]
[1727497769447,0.03852826,2702.9,2702.8,5.279678]
[1727497769611,1.20545218,2702.9,2702.8,5.279678]
[1727497771109,0.03852826,2702.9,2702.8,5.279678]
[1727497771624,1.20545218,2702.9,2702.8,5.279678]
[1727497771936,1.20545218,2702.9,2702.8,3.69979]
[1727497772318,0.03852826,2702.9,2702.8,3.69979]
[1727497772513,1.20545218,2702.9,2702.8,3.69979]
[1727497774054,0.03852826,2702.9,2702.8,3.69979]
[1727497774235,1.20545218,2702.9,2702.8,3.69979]
[1727497774949,0.03852826,2702.9,2702.8,3.69979]
[1727497775118,1.20515351,2702.9,2702.8,3.69979]
[1727497775326,1.59447146,2702.9,2702.8,3.69979]
[1727497775924,1.99705401,2702.9,2702.8,3.69979]
[1727497776161,1.26349114,2702.9,2702.7,3.69999]
[1727497776455,0.7919,2702.8,2702.6,3.70013]
[1727497776654,1.94434793,2702.7,2702.6,3.70013]
[1727497776853,1.98355807,2702.7,2702.6,3.70013]
[1727497777226,2.30441017,2702.7,2702.6,3.70013]
[1727497777761,0.36006224,2702.7,2702.6,3.70013]
[1727497778109,2.30441017,2702.7,2702.6,3.70013]
[1727497778317,1.91493816,2702.7,2702.6,3.70013]
[1727497778641,1.20527111,2702.7,2702.6,4.52053]
[1727497778957,0.03921014,2702.7,2702.6,4.52053]
[1727497779159,0.81655823,2702.7,2702.6,4.52053]
[1727497779319,0.77734809,2702.7,2702.6,4.52053]
[1727497779660,0.03921014,2702.7,2702.6,5.71265]
[1727497780021,0.77734809,2702.9,2702.8,3.69986]
[1727497780251,0.03925296,2702.9,2702.8,4.641111]
[1727497780558,1.20531393,2702.9,2702.8,4.641111]
[1727497780875,0.81653392,2702.9,2702.8,4.641111]
[1727497781047,0.81655457,2702.9,2702.8,4.641111]
[1727497781249,0.03925296,2702.9,2702.8,4.641111]
[1727497781466,0.81653938,2702.9,2702.8,4.641111]
[1727497782051,0.81655003,2702.9,2702.8,4.641111]
[1727497782373,0.81653809,2702.9,2702.8,4.641111]
[1727497782576,0.03925296,2702.9,2702.8,4.641111]
[1727497782742,0.81654888,2702.9,2702.8,4.641111]
[1727497782943,0.81654477,2702.9,2702.8,4.641111]
[1727497783138,0.03925296,2702.9,2702.8,4.641111]
[1727497783447,0.8165372,2702.9,2702.8,4.641111]
[1727497784577,0.81653511,2702.9,2702.8,4.641111]
[1727497784882,0.81653456,2702.9,2702.8,4.641111]
[1727497785079,1.20531393,2702.9,2702.8,4.641111]
[1727497785287,0.81653594,2702.9,2702.8,4.641111]
[1727497785442,0.03925296,2702.9,2702.8,4.641111]
[1727497785782,0.81653851,2702.9,2702.8,4.641111]
[1727497786886,0.03925296,2702.9,2702.8,4.641111]
[1727497787287,0.81654876,2702.9,2702.8,4.641111]
[1727497787585,0.81654876,2702.9,2702.8,3.69986]
[1727497787586,1.20531393,2702.9,2702.8,3.69986]
[1727497788744,0.03925296,2702.9,2702.8,3.69986]
[1727497789100,0.81654427,2702.9,2702.8,3.69986]
[1727497789239,0.81653685,2702.9,2702.8,3.69986]
[1727497789447,0.81655579,2702.9,2702.8,3.69986]
[1727497789672,1.20531393,2702.9,2702.8,3.69986]
[1727497790049,0.03925296,2702.9,2702.8,3.69986]
[1727497790554,1.20531393,2702.9,2702.8,3.69986]
[1727497798787,2.36796048,2702.9,2702.7,7.39991]
[1727497799088,1.16614708,2702.8,2702.7,3.69992]
[1727497799291,1.55490752,2702.8,2702.7,3.69992]
[1727497799466,1.59418964,2702.8,2702.7,3.69992]
[1727497799670,2.07235224,2702.8,2702.7,3.69992]
[1727497800254,2.07235224,2702.8,2702.5,3.70021]
[1727497800475,1.16610961,2702.6,2702.5,3.70014]
[1727497800661,1.16610961,2702.7,2702.5,3.70014]
[1727497800863,1.16610961,2702.6,2702.5,3.70014]
[1727497801676,1.16610961,2702.7,2702.5,3.70014]
[1727497801892,1.16610961,2702.7,2702.6,3.70014]
[1727497804972,1.59418964,2702.8,2702.6,3.70014]
[1727497805401,1.16579315,2702.7,2702.6,3.70014]
[1727497806266,1.55490752,2702.7,2702.6,3.70014]
[1727497806989,1.59418964,2702.8,2702.6,3.70014]
[1727497807188,1.16570571,2702.7,2702.6,3.70014]
[1727497807394,1.59418964,2702.8,2702.6,3.70014]
[1727497807897,1.16566388,2702.7,2702.6,3.70014]
[1727497808191,1.16563506,2702.7,2702.6,3.70014]
[1727497813256,1.20491718,2702.8,2702.6,3.70014]
[1727497813486,1.16563506,2702.7,2702.6,3.70014]
[1727497815401,1.59418964,2702.8,2702.6,3.70014]
[1727497815402,0.81630176,2702.8,2702.7,3.7]
[1727497815963,0.03928212,2702.8,2702.7,3.7]
[1727497818308,0.03928212,2702.8,2702.7,4.517]
[1727497818609,0.03928212,2702.8,2702.7,6.02256829]
[1727497818771,0.03928212,2702.8,2702.7,6.02256786]
[1727497818971,0.77701964,2703.0,2702.7,2.24857938]
[1727497819172,0.77701964,2703.0,2702.9,3.69972]
[1727497819670,1.16563506,2703.1,2703.0,3.69959]
[1727497819866,1.94230017,2703.3,2703.1,3.69945]
[1727497820097,1.55385388,2703.2,2703.1,3.69945]
[1727497821312,1.59358972,2703.2,2703.1,3.69945]
[1727497822001,0.03973584,2703.2,2703.1,3.69945]
[1727497822305,1.94230017,2703.3,2703.0,3.69959]
[1727497822505,1.94230017,2703.3,2702.4,1.65834277]
[1727497822506,1.55393886,2703.1,2702.8,3.6998]
[1727497822727,1.1655347,2702.9,2702.8,3.6998]
[1727497823091,2.01700864,2702.9,2702.8,3.6998]
[1727497823772,0.85147394,2702.9,2702.8,3.6998]
[1727497824511,0.812,2702.8,2702.4,7.40068]
[1727497824667,0.812,2702.8,2702.4,3.7003]
[1727497824668,1.16588034,2702.5,2702.4,3.7003]
[1727497825248,0.03907672,2702.5,2702.4,3.7003]
[1727497825508,1.20497102,2702.5,2702.4,3.7003]
[1727497826301,0.03907672,2702.5,2702.4,3.7003]
[1727497826616,1.20471461,2702.5,2702.4,3.7003]
[1727497828941,1.20471461,2702.5,2702.3,3.70054]
[1727497828942,0.83517672,2702.5,2702.3,3.70054]
[1727497829081,3.26284995,2702.4,2702.3,3.70055]
[1727497829412,1.59332896,2702.4,2702.3,3.70055]
[1727497832515,0.03882184,2702.4,2702.3,3.70055]
[1727497832893,0.03882184,2702.4,2702.1,7.40144]
[1727497833128,0.77648555,2702.2,2702.1,3.7007]
[1727497833628,0.81466527,2702.2,2702.1,3.7007]
[1727497834338,0.03817972,2702.2,2702.1,3.7007]
[1727497834522,0.81466527,2702.2,2702.1,3.7007]
[1727497834731,0.77648555,2702.2,2702.1,3.7007]
[1727497835032,0.03817172,2702.2,2702.1,3.7007]
[1727497835234,0.77648555,2702.3,2702.0,3.70096]
[1727497835444,0.03817172,2702.2,2702.1,3.70082]
[1727497835928,0.77648555,2702.3,2702.2,3.70068]
[1727497837039,0.81475661,2702.3,2702.2,3.70068]
[1727497840467,3.07194286,2702.3,2702.2,3.70068]
[1727497840743,3.90154286,2702.3,2702.2,3.70068]
[1727497845121,0.81475661,2702.3,2702.2,3.70068]
[1727497846020,0.03827106,2702.3,2702.2,3.70068]
[1727497848369,0.03827106,2702.3,2702.2,4.45678]
[1727497848732,0.77648555,2702.7,2702.6,3.70014]
[1727497850043,0.77648555,2702.8,2702.7,3.7]
[1727497850575,7.35,2702.9,2702.8,3.69986]
[1727497850576,0.77648555,2702.9,2702.8,3.69986]
[1727497850927,0.77586995,2702.9,2702.8,3.69986]
[1727497851278,0.77587144,2702.9,2702.8,3.69986]
[1727497851432,0.81501072,2702.9,2702.8,3.69986]
[1727497858711,0.7903,2702.8,2702.5,3.7002]
[1727497858855,0.7903,2702.8,2702.1,3.70077]
[1727497858856,0.7903,2702.5,2702.1,3.70077]
[1727497859054,0.7903,2702.2,2701.9,3.70102]
[1727497859360,1.56615232,2702.2,2702.1,3.70082]
[1727497860305,1.60353979,2702.2,2701.9,3.70098]
[1727497860595,1.60353979,2702.2,2702.0,3.70091]
[1727497861264,1.60353979,2702.2,2702.1,3.70082]
[1727497863665,1.60353979,2702.2,2702.0,3.70095]
[1727497866791,1.60353979,2702.2,2702.1,3.70082]
[1727497867103,0.82768747,2702.2,2701.9,7.40198]
[1727497867403,0.77610685,2702.1,2701.9,7.40198]
[1727497867903,0.03701297,2702.0,2701.9,7.40198]
[1727497873376,0.03701297,2702.0,2701.9,8.21048]
[1727497873573,0.03701297,2702.0,2701.9,9.03892962]
[1727497873774,0.03701297,2702.0,2701.9,8.21048]
[1727497880701,0.03701297,2702.0,2701.9,3.70098]
[1727497880912,0.81311982,2702.0,2701.9,3.70098]
[1727497881418,1.2017413,2702.0,2701.9,3.70098]
[1727497882123,1.2017413,2702.0,2701.8,3.70122]
[1727497882275,1.2017413,2702.0,2701.6,3.70145]
[1727497882276,2.43456742,2701.9,2701.6,3.70145]
[1727497882479,0.77617349,2701.8,2701.6,3.70145]
[1727497882680,0.8124131,2701.8,2701.6,3.70145]
[1727497884218,0.8124131,2701.8,2701.6,3.70142]
[1727497884421,0.8124131,2701.8,2701.6,7.40284]
[1727497884594,0.03623961,2701.8,2701.6,7.40284]
[1727497885103,0.03623961,2701.8,2701.7,3.70137]
[1727497886508,0.8124131,2701.8,2701.7,3.70137]
[1727497886904,0.03623961,2701.8,2701.7,3.70137]
[1727497888832,0.8124131,2701.8,2701.7,3.70137]
[1727497889008,2.38241642,2701.8,2701.6,3.70142]
[1727497889327,0.77582968,2701.7,2701.6,3.70142]
[1727497889815,0.81134883,2701.7,2701.6,3.70142]
[1727497890029,3.2375916,2701.7,2701.4,3.7017]
[1727497890181,1.65834277,2701.5,2701.4,3.7017]
[1727497890383,1.08649998,2701.6,2700.9,6.70241]
[1727497890384,1.08649998,2701.6,2701.5,3.70164]
[1727497890905,0.31075256,2701.6,2701.5,3.70164]
[1727497891422,1.54364742,2701.7,2701.5,3.70164]
[1727497891719,1.54364742,2701.7,2701.6,3.70151]
[1727497892308,1.54364742,2701.7,2701.5,3.70164]
[1727497892701,1.54364742,2701.7,2701.5,3.70154]
[1727497893422,0.03562756,2701.6,2701.5,3.70154]
[1727497894589,0.39574418,2701.6,2701.5,3.70154]
[1727497896824,0.39574418,2701.6,2701.3,3.70184]
[1727497896825,2.05408695,2701.6,2701.3,3.70184]
[1727497897027,0.03562756,2701.6,2701.5,3.70164]
[1727497898088,0.81092822,2701.6,2701.5,3.70164]
[1727497898294,0.03562756,2701.6,2701.5,3.70164]
[1727497898518,0.81092822,2701.6,2701.5,3.70164]
[1727497898706,0.03562756,2701.6,2701.5,3.70164]
[1727497900404,0.81092822,2701.6,2701.5,3.70164]
[1727497902426,0.03562756,2701.6,2701.5,3.70164]
[1727497902607,0.81171506,2701.6,2701.5,3.70164]
[1727497902932,0.03562756,2701.6,2701.5,3.70164]
[1727497903121,0.81170569,2701.6,2701.5,3.70164]
[1727497903499,1.20035589,2701.6,2701.5,3.70164]
[1727497905093,1.20035589,2701.6,2701.0,3.70222]
[1727497905094,1.71846647,2701.6,2700.9,0.8151]
[1727497905294,1.16472833,2701.4,2701.3,3.70192]
[1727497905498,0.03513693,2701.4,2701.3,3.70192]
[1727497905698,0.81172841,2701.4,2701.3,3.70192]
[1727497906046,0.03513693,2701.4,2701.3,4.46172]
[1727497906332,0.03513693,2701.4,2701.3,5.278097]
[1727497906638,0.77658099,2701.5,2701.4,3.70178]
[1727497907300,0.77658099,2701.6,2701.5,3.70164]
[1727497908334,0.77658099,2701.6,2701.5,5.3593997]
[1727497909014,0.81190068,2701.6,2701.5,5.3593997]
[1727497909726,0.03531969,2701.6,2701.5,5.3593997]
[1727497910146,0.81189061,2701.6,2701.5,5.3593997]
[1727497914313,0.81208628,2701.6,2701.5,5.3593997]
[1727497914552,0.03531969,2701.6,2701.5,5.3593997]
[1727497915945,0.81214337,2701.6,2701.5,5.3593997]
[1727497916317,0.81214337,2701.6,2701.5,4.46144]
[1727497917162,0.03531969,2701.6,2701.5,4.46144]
[1727497920124,1.20004802,2701.6,2701.5,4.46144]
[1727497921022,0.03531969,2701.6,2701.5,4.46144]
[1727497921430,1.20004802,2701.6,2701.5,4.46144]
[1727497922020,0.03531969,2701.6,2701.5,4.46144]
[1727497922240,1.20004802,2701.6,2701.5,4.46144]
[1727497927561,1.20222211,2701.6,2701.5,4.46144]
[1727497928262,0.03531969,2701.6,2701.5,4.46144]
[1727497929068,1.58982681,2701.6,2701.5,4.46144]
[1727497930480,0.03531969,2701.6,2701.5,4.46144]
[1727497930660,1.58982681,2701.6,2701.5,3.70164]
[1727497931672,0.03531969,2701.6,2701.5,3.70164]
[1727497931839,1.58982681,2701.6,2701.5,3.70164]
[1727497932667,0.03531969,2701.6,2701.5,3.70164]
[1727497932868,1.58982681,2701.6,2701.5,3.70164]
[1727497935775,0.03531969,2701.6,2701.5,3.70164]
[1727497936577,1.58982681,2701.6,2701.5,3.70164]
[1727497937879,0.03531969,2701.6,2701.5,6.95678477]
[1727497938097,0.03531969,2701.6,2701.5,7.03080252]
[1727497938297,0.77808874,2701.8,2701.7,3.70137]
[1727497938479,0.77808874,2701.8,2701.7,4.47997]
[1727497938683,1.16725878,2702.0,2701.8,3.70123]
[1727497938997,0.77780807,2701.9,2701.8,3.70123]
[1727497939206,1.16725878,2702.0,2701.9,3.70109]
[1727497940600,1.16725878,2702.1,2701.9,3.70109]
[1727497940798,1.16725878,2702.0,2701.9,3.70109]
[1727497940971,1.55450712,2702.2,2702.0,3.70096]
[1727497941175,1.16614209,2702.1,2702.0,3.70096]
[1727497942210,1.94522185,2702.3,2702.2,3.70068]
[1727497942211,1.55450712,2702.3,2702.2,3.70068]